Workbook

Sheet Cockpit
A1: mein Ausbildungsbudget
F2: 1
A3: Einnahmen | B3: Budget | C3: Effektiv | D3: Differenz | F3: bitte auswählen
A5: Lohn | B5: 630 | C5: 630 | D5: =B5-C5 -> 0
A6: Nebenerwerb | B6: 80 | C6: =SUM(Nebenerwerb!D:D) -> 30 | D6: =B6-C6 -> 50
A8: Total Einnahmen | B8: =SUM(B5:B6) -> 710 | C8: =SUM(C5:C6) -> 660 | D8: 50
A11: Ausgaben
A13: Abgabe zuhause | B13: 100 | C13: =B13 -> 100 | D13: 0
A14: Essen auswärts | B14: 200 | C14: =SUM(Essen!D:D) -> 31.4 | D14: 168.6
A15: Bekleidung/Schuhe | B15: 120 | C15: =SUM(Bekleidung!D:D) -> 54.8 | D15: 65.2
A16: Fahrzeug, Fahrten | B16: 90 | C16: =SUM(Fahrten!D:D) -> 136.2 | D16: -46.2
A17: Versicherungen | B17: 20 | C17: =SUM(Versicherungen!D:D) -> 15 | D17: 5
A18: Berufsschule | B18: 10 | C18: =SUM(Berufsschule!D:D) -> 18 | D18: -8
A19: Freizeit | B19: 120 | C19: =SUM(Freizeit!D:D) -> 65 | D19: 55
A20: Sparen | B20: 50 | C20: =SUM(Sparen!D:D) -> 50 | D20: 0
A23: Total Ausgaben | B23: =SUM(B13:B20) -> 710 | C23: =SUM(C13:C20) -> 470.4 | D23: 239.6

Sheet Essen
A1: Datum | B1: Positionen (Essen) | C1: Budget | D1: aus | E1: Saldo
A2: 2022-07-01 | B2: Übertrag | C2: =Cockpit!B14 -> 200 | E2: =C2 -> 200
B3: Mittagessen Krone | D3: 15 | E3: =IF(E2="","",E2-D3) -> 185
A4: 2022-07-03 | B4: Mittagessen eingekauft | D4: 8.5 | E4: =IF(E3="","",E3-D4) -> 176.5
A5: 2022-07-05 | B5: Mc Donald | D5: 7.9 | E5: =IF(E4="","",E4-D5) -> 168.6

Sheet Bekleidung
A1: Datum | B1: Positionen (Bekleidung) | C1: Budget | D1: aus | E1: Saldo
A2: 2022-07-01 | B2: Übertrag | C2: =Cockpit!B15 -> 120 | E2: =C2 -> 120
E3: =IF(E2="","",E2-D3) -> 120
A4: 2022-07-09 | B4: T-Shirts | D4: 54.8 | E4: =IF(E3="","",E3-D4) -> 65.2

Sheet Fahrten
A1: Datum | B1: Positionen (Fahrten) | C1: Budget | D1: aus | E1: Saldo
A2: 2022-07-01 | B2: Übertrag | C2: =Cockpit!B16 -> 90 | E2: =C2 -> 90
E3: =IF(E2="","",E2-D3) -> 90
A4: 2022-07-12 | B4: Töffreparatur | D4: 136.2 | E4: =IF(E3="","",E3-D4) -> -46.2

Sheet Versicherungen
A1: Datum | B1: Positionen (Versicherungen) | C1: Budget | D1: aus | E1: Saldo
A2: 2022-07-01 | B2: Übertrag | C2: =Cockpit!B17 -> 20 | E2: =C2 -> 20
E3: =IF(E2="","",E2-D3) -> 20
A4: 2022-07-20 | B4: Anteil Krankenkasse | D4: 15 | E4: =IF(E3="","",E3-D4) -> 5

Sheet Berufsschule
A1: Datum | B1: Positionen (Berufsschule) | C1: Budget | D1: aus | E1: Saldo
A2: 2022-07-01 | B2: Übertrag | C2: =Cockpit!B18 -> 10 | E2: =C2 -> 10
E3: =IF(E2="","",E2-D3) -> 10
A4: 2022-07-22 | B4: Exkursion | D4: 18 | E4: =IF(E3="","",E3-D4) -> -8

Sheet Freizeit
A1: Datum | B1: Positionen (Freizeit) | C1: Budget | D1: aus | E1: Saldo
A2: 2022-07-01 | B2: Übertrag | C2: =Cockpit!B19 -> 120 | E2: =C2 -> 120
E3: =IF(E2="","",E2-D3) -> 120
A4: 2022-07-24 | B4: Kinobesuch und Ausgang | D4: 65 | E4: =IF(E3="","",E3-D4) -> 55

Sheet Sparen
A1: Datum | B1: Positionen (Sparen) | C1: Budget | D1: aus | E1: Saldo
A2: 2022-07-01 | B2: Übertrag | C2: =Cockpit!B20 -> 50 | E2: =C2 -> 50
E3: =IF(E2="","",E2-D3) -> 50
A4: 2022-07-28 | B4: Einlage Sparkonto | D4: 50 | E4: =IF(E3="","",E3-D4) -> 0

Sheet Nebenerwerb
A1: Datum | B1: Positionen (Nebenerwerb) | C1: Budget | D1: ein | E1: Saldo
A2: 2022-07-01 | B2: Übertrag | C2: =Cockpit!B6 -> 80 | D2: 0 | E2: =D2 -> 0
A3: 2022-07-13 | B3: Rasenmähen (Nachbar) | D3: 30 | E3: =IF(E2="","",E2+D3) -> 30

Sheet Werteliste
A1: wohin?
A2: Essen
A3: Bekleidung
A4: Fahrten
A5: Versicherungen
A6: Berufsschule
A7: Freizeit
A8: Sparen
A9: Nebenerwerb
